bitfinex-derivatives/quotes_BTCF0:USTF0_20250912
["timestamp","ask_amount","ask_price","bid_price","bid_amount"]
[1757685000955,0.05057359,115110.0,115100.0,0.6138]
[1757685001362,0.05057359,115110.0,115100.0,0.97627685]
[1757685001756,0.43075276,115110.0,115100.0,0.3638]
[1757685001951,1.23291276,115110.0,115100.0,0.006]
[1757685002262,1.84371276,115110.0,115100.0,0.006]
[1757685002854,1.04255276,115110.0,115100.0,0.006]
[1757685003162,1.84371276,115110.0,115100.0,0.006]
[1757685003762,1.04255276,115110.0,115100.0,0.006]
[1757685003970,1.84375276,115110.0,115100.0,0.006]
[1757685004463,1.8442801,115110.0,115100.0,0.006]
[1757685004762,1.0430801,115110.0,115100.0,0.006]
[1757685004959,1.75349006,115110.0,115100.0,0.006]
[1757685005159,0.95229006,115110.0,115100.0,0.006]
[1757685005361,2.00349006,115110.0,115100.0,0.006]
[1757685006358,0.03638,115090.0,115080.0,0.3608]
[1757685006663,1.37142774,115090.0,115080.0,0.3608]
[1757685007563,0.03638,115080.0,115070.0,0.3608]
[1757685007764,0.03797359,115080.0,115070.0,0.3608]
[1757685008263,0.56018774,115080.0,115070.0,0.3608]
[1757685008459,0.04638,115070.0,115060.0,0.3608]
[1757685008763,1.37146774,115070.0,115060.0,0.3608]
[1757685009961,0.03638,115060.0,115050.0,0.3608]
[1757685010167,0.55859415,115060.0,115050.0,0.3608]
[1757685010370,0.5589731,115060.0,115050.0,0.3608]
[1757685010759,0.56056669,115060.0,115050.0,0.3608]
[1757685011164,0.46471493,115060.0,115050.0,0.3608]
[1757685012069,0.84346073,115060.0,115050.0,0.005]
[1757685012460,1.09346073,115060.0,115050.0,0.005]
[1757685013166,1.09346073,115060.0,115040.0,0.3608]
[1757685013366,1.27448134,115050.0,115040.0,0.3608]
[1757685013860,1.27607493,115050.0,115040.0,0.3608]
[1757685014162,1.27607493,115050.0,115030.0,0.3608]
[1757685014372,0.46312134,115040.0,115030.0,0.3608]
[1757685014760,1.26452134,115040.0,115030.0,0.3608]
[1757685014961,1.26624279,115040.0,115030.0,0.3608]
[1757685016070,1.26624279,115040.0,115030.0,0.3638]
[1757685016267,1.26624279,115040.0,115030.0,0.003]
[1757685017175,1.26724279,115040.0,115030.0,0.009]
[1757685019174,1.28472986,115040.0,115030.0,0.009]
[1757685019573,1.64552986,115040.0,115030.0,0.009]
[1757685020769,0.41726066,115040.0,115030.0,0.009]
[1757685020977,1.64572986,115040.0,115030.0,0.009]
[1757685022186,0.84412986,115040.0,115030.0,0.009]
[1757685022883,1.64572986,115040.0,115030.0,0.009]
[1757685023786,0.84412986,115040.0,115030.0,0.009]
[1757685024187,1.64572986,115040.0,115030.0,0.009]
[1757685026082,1.64572986,115040.0,115020.0,0.3608]
[1757685026083,0.01329,115020.0,115010.0,0.3608]
[1757685026286,1.2733392,115020.0,115010.0,0.3608]
[1757685026890,1.27493279,115020.0,115010.0,0.3608]
[1757685027581,0.03483,115010.0,115000.0,0.3608]
[1757685027981,0.03642359,115010.0,115000.0,0.3608]
[1757685028790,0.03902359,115010.0,115000.0,0.3658]
[1757685032392,0.03902359,115010.0,115000.0,0.3628]
[1757685034193,0.46589279,115010.0,115000.0,0.3628]
[1757685035094,0.46689279,115010.0,115000.0,0.3658]
[1757685035298,0.48438087,115010.0,115000.0,0.3658]
[1757685035492,0.48438087,115010.0,115000.0,0.005]
[1757685037199,0.05751167,115010.0,115000.0,0.005]
[1757685038100,0.05751167,115010.0,115000.0,0.3658]
[1757685038300,0.84355167,115010.0,115000.0,0.3658]
[1757685038797,0.01848359,115010.0,115000.0,0.6158]
[1757685039199,0.01848359,115010.0,115000.0,1.14977106]
[1757685039391,0.00519359,115010.0,115000.0,0.89977106]
[1757685039592,0.00519359,115010.0,115000.0,1.14977106]
[1757685040390,0.03057175,115030.0,115010.0,0.0869211]
[1757685040598,0.03057175,115030.0,115020.0,0.7876692]
[1757685040796,0.04057175,115030.0,115020.0,0.7876692]
[1757685040995,0.04057175,115030.0,115020.0,1.3984692]
[1757685041202,0.03057175,115030.0,115020.0,1.3984692]
[1757685041692,0.01329,115030.0,115020.0,1.3984692]
[1757685042500,0.01529,115030.0,115020.0,1.3984692]
[1757685042798,0.002,115030.0,115020.0,2.2870671]
[1757685043699,0.002,115030.0,115020.0,2.2870271]
[1757685043898,0.002,115030.0,115020.0,1.3984692]
[1757685044099,0.03683,115030.0,115020.0,1.52324]
[1757685045691,0.01529,115030.0,115020.0,0.7216]
[1757685045899,0.01529,115030.0,115020.0,1.5232]
[1757685047104,0.01529,115030.0,115020.0,1.52316]
[1757685047304,0.01429,115030.0,115020.0,1.52416]
[1757685047495,0.01429,115030.0,115020.0,1.9510292]
[1757685049308,0.01429,115030.0,115020.0,1.1494692]
[1757685049606,0.01429,115030.0,115020.0,1.52412]
[1757685050300,0.001,115030.0,115020.0,0.8095178]
[1757685050507,0.001,115030.0,115020.0,2.287907]
[1757685050805,0.02329,115050.0,115030.0,0.0869085]
[1757685051105,0.02329,115050.0,115040.0,1.9499492]
[1757685051400,0.01589,115060.0,115040.0,2.0368519]
[1757685051609,0.01,115050.0,115040.0,0.7876692]
[1757685051904,0.01,115050.0,115040.0,1.9499492]
[1757685052096,0.012,115050.0,115040.0,1.9499492]
[1757685052497,0.02478,115050.0,115040.0,1.9499492]
[1757685052793,0.02478,115050.0,115040.0,1.95851533]
[1757685053303,0.02478,115050.0,115040.0,1.95847533]
[1757685053508,0.02478,115050.0,115040.0,1.95843533]
[1757685055004,0.02278,115050.0,115040.0,1.95843533]
[1757685055710,0.02278,115050.0,115040.0,2.029596]
[1757685056311,0.02578,115050.0,115040.0,2.029596]
[1757685056503,0.013,115050.0,115040.0,1.228196]
[1757685056709,0.013,115050.0,115040.0,2.02922765]
[1757685057012,0.013,115050.0,115040.0,1.22786765]
[1757685057212,0.011,115050.0,115040.0,2.03018765]
[1757685058114,0.02378,115050.0,115040.0,1.22886765]
[1757685058313,0.02378,115050.0,115040.0,2.03018765]
[1757685059417,0.02378,115050.0,115040.0,1.22886765]
[1757685059612,0.02378,115050.0,115040.0,2.03014765]
[1757685059811,0.02378,115050.0,115040.0,1.22886765]
[1757685060015,0.02378,115050.0,115040.0,2.03014765]
[1757685060215,0.02378,115050.0,115040.0,1.22886765]
[1757685060519,0.02378,115050.0,115040.0,2.03014765]
[1757685061114,0.02378,115050.0,115040.0,0.79376067]
[1757685061310,0.04533,115050.0,115040.0,1.59504067]
[1757685061517,0.29533,115050.0,115040.0,0.001]
[1757685061817,0.29533,115050.0,115040.0,0.3618]
[1757685064808,0.29533,115050.0,115040.0,0.001]
[1757685065014,0.72187085,115050.0,115040.0,0.001]
[1757685065217,1.08267085,115050.0,115040.0,0.001]
[1757685066013,1.08267085,115050.0,115020.0,0.3608]
[1757685066308,0.01278,115010.0,115000.0,0.38096896]
[1757685066515,0.04433,115010.0,115000.0,0.38096896]
[1757685068715,0.04433,115010.0,115000.0,0.38596896]
[1757685068716,0.72087085,115010.0,115000.0,0.38596896]
[1757685068920,0.72287085,115010.0,115000.0,0.38596896]
[1757685069109,0.29633,115010.0,115000.0,0.38596896]
[1757685069418,0.29633,115010.0,115000.0,0.38996896]
[1757685070012,0.04633,115010.0,115000.0,0.38596896]
[1757685070320,0.04633,115010.0,115000.0,0.38796896]
[1757685070620,0.02478,115010.0,115000.0,0.38796896]
[1757685070914,0.02478,115010.0,115000.0,1.06450981]
[1757685071621,0.012,115010.0,115000.0,1.15144211]
[1757685072014,0.012,115010.0,115000.0,1.22941994]
[1757685072209,0.002,115010.0,115000.0,1.22941994]
[1757685072414,0.002,115010.0,115000.0,1.22961026]
[1757685072719,0.002,115010.0,115000.0,1.74961026]
[1757685072920,0.002,115010.0,115000.0,1.84552049]
[1757685073416,0.001,115010.0,115000.0,1.84352049]
[1757685073618,0.001,115010.0,115000.0,1.75658819]
[1757685073818,0.001,115010.0,115000.0,1.84352049]
[1757685074016,0.001,115010.0,115000.0,2.64476049]
[1757685074416,0.001,115010.0,115000.0,2.56678266]
[1757685075320,0.001,115010.0,115000.0,2.85863122]
[1757685075517,0.001,115010.0,115000.0,2.93650884]
[1757685075819,0.001,115010.0,115000.0,2.74948266]
[1757685076623,0.01378,115010.0,115000.0,1.88990896]
[1757685076920,0.01378,115010.0,115000.0,2.49042848]
[1757685078324,0.01378,115010.0,115000.0,1.68918848]
[1757685078621,0.01378,115010.0,115000.0,1.36990896]
[1757685079023,0.01378,115010.0,115000.0,1.18720896]
[1757685079224,0.01378,115010.0,115000.0,1.70985036]
[1757685080932,0.001,115010.0,115000.0,1.79678266]
[1757685081114,0.001,115010.0,115000.0,1.87466078]
[1757685081426,0.001,115010.0,115000.0,2.00466078]
[1757685082414,0.01538,115030.0,115000.0,2.72159308]
[1757685082616,0.01538,115030.0,115020.0,0.7216]
[1757685082617,0.02538,115030.0,115020.0,0.7216]
[1757685082818,0.02538,115030.0,115020.0,2.06605315]
[1757685083021,0.0126,115030.0,115020.0,2.06605315]
[1757685083922,0.29702,115030.0,115020.0,0.74221175]
[1757685084128,0.29702,115030.0,115020.0,1.54337175]
[1757685086528,0.29702,115030.0,115020.0,1.54437175]
[1757685087822,0.29802,115030.0,115020.0,1.54437175]
[1757685088124,0.29802,115030.0,115020.0,0.74321175]
[1757685088429,0.8206614,115030.0,115020.0,1.18357175]
[1757685088930,0.8206614,115030.0,115020.0,0.3618]
[1757685089136,0.8196614,115030.0,115020.0,0.3618]
[1757685089431,0.8206614,115030.0,115020.0,0.3648]
[1757685090128,0.8206614,115030.0,115020.0,0.3638]
[1757685090325,0.8206614,115030.0,115020.0,0.003]
[1757685091326,1.1814614,115030.0,115020.0,0.003]
[1757685091528,1.9825814,115030.0,115020.0,0.003]
[1757685093032,1.9825814,115030.0,115000.0,0.3608]
[1757685093332,0.01307,115000.0,114990.0,1.16188]
[1757685093528,0.5357114,115000.0,114990.0,1.16188]
[1757685094825,0.01307,115000.0,114990.0,1.16188]
[1757685095430,0.03442,115000.0,114990.0,0.3608]
[1757685096434,0.03442,115000.0,114990.0,0.3638]
[1757685097535,0.5570614,115000.0,114990.0,0.3638]
[1757685099035,0.5570614,115000.0,114990.0,0.003]
[1757685101639,0.03442,115000.0,114990.0,0.003]
[1757685101844,0.5570614,115000.0,114990.0,0.3638]
[1757685102831,0.03442,115000.0,114990.0,0.3638]
[1757685103038,0.01307,115000.0,114990.0,0.3638]
[1757685103336,0.02507,115000.0,114990.0,0.3648]
[1757685103538,0.04642,115000.0,114990.0,0.3648]
[1757685104147,0.02507,115000.0,114990.0,0.8874414]
[1757685104444,0.02507,115000.0,114990.0,1.6885614]
[1757685104630,0.02507,115000.0,114990.0,0.3648]
[1757685104837,0.04642,115000.0,114990.0,0.3648]
[1757685112549,0.5690614,115000.0,114990.0,0.004]
[1757685113252,1.6201414,115000.0,114990.0,0.004]
[1757685114043,1.9809414,115000.0,114990.0,0.004]
[1757685115550,0.04508,114970.0,114950.0,0.43867812]
[1757685115751,0.5577214,114960.0,114950.0,0.43867812]
[1757685115947,0.03508,114960.0,114950.0,0.43867812]
[1757685116340,0.03508,114960.0,114950.0,0.3608]
[1757685116540,0.03508,114960.0,114950.0,0.43867812]
[1757685116947,0.03508,114960.0,114950.0,0.44467812]
[1757685117348,0.5577214,114960.0,114950.0,0.3668]
[1757685117751,0.03508,114960.0,114950.0,0.3668]
[1757685117955,0.5577214,114960.0,114950.0,0.3668]
[1757685118454,1.3588014,114960.0,114950.0,0.3608]
[1757685118751,1.3598014,114960.0,114950.0,0.3678]
[1757685119252,0.5587214,114960.0,114950.0,0.3678]
[1757685119846,0.5577214,114960.0,114950.0,0.3618]
[1757685121044,0.03508,114960.0,114950.0,0.3618]
[1757685121642,0.03508,114960.0,114950.0,0.8844414]
[1757685121846,0.04508,114960.0,114950.0,0.8844414]
[1757685122062,0.04508,114960.0,114950.0,0.3618]
[1757685122063,0.5677214,114960.0,114950.0,0.3618]
[1757685122552,0.5677214,114960.0,114950.0,0.3608]
[1757685122746,0.5687214,114960.0,114950.0,0.3618]
[1757685124250,0.5687214,114960.0,114950.0,0.001]
[1757685124948,1.3698814,114960.0,114950.0,0.001]
[1757685126455,1.3724814,114960.0,114950.0,0.001]
[1757685126848,0.84984,114960.0,114950.0,0.001]
[1757685127147,1.3724814,114960.0,114950.0,0.001]
[1757685127454,0.5713214,114960.0,114950.0,0.001]
[1757685127654,0.5613214,114960.0,114950.0,0.3618]
[1757685127849,0.5713214,114960.0,114950.0,0.3618]
[1757685128855,1.3724814,114960.0,114950.0,0.3618]
[1757685129452,0.5713214,114960.0,114950.0,0.3618]
[1757685129654,1.3724814,114960.0,114950.0,0.3618]
[1757685129854,0.5713214,114960.0,114950.0,0.3618]
[1757685130161,1.3724814,114960.0,114950.0,0.3618]
[1757685130451,0.04868,114960.0,114950.0,0.8844414]
[1757685130759,0.02707,114960.0,114950.0,1.1344414]
[1757685131250,0.02707,114960.0,114950.0,0.6118]
[1757685131748,0.04868,114960.0,114950.0,0.6118]
[1757685133156,0.02707,114960.0,114950.0,1.1344414]
[1757685134453,0.02707,114960.0,114950.0,1.13508566]
[1757685134647,0.0136,114960.0,114950.0,1.13508566]
[1757685134850,0.02707,114960.0,114950.0,1.03904143]
[1757685135151,0.02707,114960.0,114950.0,0.6118]
[1757685135361,0.04868,114960.0,114950.0,0.3618]
[1757685136151,0.47592143,114960.0,114950.0,0.3618]
[1757685136842,0.04868,114960.0,114950.0,0.3618]
[1757685137254,0.29868,114960.0,114950.0,0.001]
[1757685137646,0.72592143,114960.0,114950.0,0.001]
[1757685138158,0.29868,114960.0,114950.0,0.3618]
[1757685140857,0.04868,114960.0,114950.0,0.3618]
[1757685142260,0.02707,114960.0,114950.0,0.3618]
[1757685142456,0.05007,114960.0,114950.0,0.3618]
[1757685144662,0.47731143,114960.0,114950.0,0.3618]
[1757685144858,0.47731143,114960.0,114950.0,0.001]
[1757685145160,0.72731143,114960.0,114950.0,0.001]
[1757685145365,1.08811143,114960.0,114950.0,0.001]
[1757685145865,1.11103317,114960.0,114950.0,0.001]
[1757685146268,1.08811143,114960.0,114950.0,0.001]
[1757685147161,1.88907143,114960.0,114950.0,0.001]
[1757685147958,1.08811143,114960.0,114950.0,0.001]
[1757685148157,1.88907143,114960.0,114950.0,0.001]
[1757685149863,1.52827143,114960.0,114950.0,0.001]
[1757685150563,1.52831143,114960.0,114950.0,0.001]
[1757685151051,0.72731143,114960.0,114950.0,0.001]
[1757685151254,1.52827143,114960.0,114950.0,0.001]
[1757685151754,0.47731143,114960.0,114950.0,0.001]
[1757685151950,0.84103,114960.0,114950.0,0.001]
[1757685152358,0.85103,114960.0,114950.0,0.001]
[1757685152559,0.85103,114960.0,114950.0,0.3618]
[1757685153059,0.05007,114960.0,114950.0,0.3618]
[1757685153855,0.05007,114960.0,114950.0,0.6118]
[1757685154556,0.05007,114960.0,114950.0,1.03904143]
[1757685154762,0.02707,114960.0,114950.0,1.03904143]
[1757685155062,0.05007,114960.0,114950.0,0.6118]
[1757685155263,0.02707,114960.0,114950.0,0.6118]
[1757685155455,0.05007,114960.0,114950.0,0.68967812]
[1757685155963,0.02707,114960.0,114950.0,0.68967812]
[1757685156964,0.02707,114960.0,114950.0,0.6118]
[1757685157759,0.01707,114960.0,114950.0,0.6118]
[1757685157970,0.02707,114960.0,114950.0,0.68967812]
[1757685158965,0.05007,114960.0,114950.0,0.68967812]
[1757685159366,0.02707,114960.0,114950.0,0.43967812]
[1757685159668,0.05007,114960.0,114950.0,0.43967812]
[1757685159972,0.05007,114960.0,114950.0,0.3618]
[1757685160165,0.05007,114960.0,114950.0,0.4399083]
[1757685163465,0.02707,114960.0,114950.0,0.4399083]
[1757685164169,0.02707,114960.0,114950.0,0.86714973]
[1757685164757,0.02707,114960.0,114950.0,0.4399083]
[1757685165769,0.0136,114960.0,114950.0,1.11714973]
[1757685166268,0.02647,114960.0,114950.0,1.11714973]
[1757685166570,0.02647,114960.0,114950.0,1.03904143]
[1757685167371,0.02647,114960.0,114950.0,1.14839305]
[1757685168171,0.02647,114960.0,114950.0,1.94907305]
[1757685168369,0.02647,114960.0,114950.0,2.03604245]
[1757685168370,0.0036,114960.0,114950.0,2.03604245]
[1757685168670,0.02347,114980.0,114960.0,0.0869619]
[1757685168869,0.02347,114980.0,114970.0,1.22692475]
[1757685169070,0.04647,114980.0,114970.0,0.79968332]
[1757685170570,0.04947,114980.0,114970.0,0.79968332]
[1757685171071,0.05047,114980.0,114970.0,0.79968332]
[1757685172762,0.04947,114980.0,114970.0,0.80068332]
[1757685173268,0.04947,114980.0,114970.0,0.80923895]
[1757685173468,0.04947,114980.0,114970.0,0.80068332]
[1757685173674,0.74437178,114980.0,114970.0,0.80068332]
[1757685173864,0.74437178,114980.0,114970.0,0.7226]
[1757685175075,0.31713035,114980.0,114970.0,0.7216]
[1757685175281,0.31413035,114980.0,114970.0,0.7216]
[1757685175574,0.31613035,114980.0,114970.0,0.7226]
[1757685175773,0.74337178,114980.0,114970.0,0.7226]
[1757685176773,0.31613035,114980.0,114970.0,0.7216]
[1757685176970,0.31513035,114980.0,114970.0,0.7226]
[1757685177678,0.31513035,114980.0,114970.0,0.3618]
[1757685177878,1.11557035,114980.0,114970.0,0.3618]
[1757685178175,0.31513035,114980.0,114970.0,0.3618]
[1757685179072,0.06513035,114980.0,114970.0,0.3618]
[1757685180371,0.06513035,114980.0,114970.0,0.7226]
[1757685180576,0.03213035,114980.0,114970.0,0.7226]
[1757685181176,0.03213035,114980.0,114970.0,2.20020143]
[1757685181375,0.01866035,114980.0,114970.0,2.36523905]
[1757685181573,0.01866035,114980.0,114970.0,1.59614735]
[1757685181775,0.01866035,114980.0,114970.0,2.39650735]
[1757685181966,0.01866035,114980.0,114970.0,2.30955305]
[1757685182170,0.00452459,114980.0,114970.0,2.30955305]
[1757685182371,0.00452459,114980.0,114970.0,2.39650735]
[1757685182778,0.00452459,114980.0,114970.0,2.30955305]
[1757685183078,0.00452459,114980.0,114970.0,2.39650735]
[1757685183570,0.00452459,114980.0,114970.0,2.46524204]
[1757685183965,0.00452459,114980.0,114970.0,1.57792774]
[1757685184169,0.01729459,114980.0,114970.0,2.37824774]
[1757685184881,0.01729459,114980.0,114970.0,2.46520204]
[1757685186078,0.01729459,114980.0,114970.0,1.66488204]
[1757685186379,0.01729459,114980.0,114970.0,2.80512204]
[1757685188182,0.001,114980.0,114970.0,2.80508204]
[1757685188568,0.001,114980.0,114970.0,2.82546299]
[1757685190884,0.001,114980.0,114970.0,2.39822156]
[1757685191277,0.01377,114980.0,114970.0,1.51110726]
[1757685191472,0.01377,114980.0,114970.0,2.39818156]
[1757685191674,0.001,114980.0,114970.0,2.39818156]
[1757685191874,0.001,114980.0,114970.0,1.59806156]
[1757685192082,0.001,114980.0,114970.0,2.82538299]
[1757685193082,0.001,114980.0,114970.0,2.39814156]
[1757685193982,0.001,114980.0,114970.0,2.82538299]
[1757685194685,0.04312477,115000.0,114980.0,0.0869431]
[1757685194884,0.04312477,115000.0,114990.0,2.02687449]
[1757685195783,0.04312477,115000.0,114990.0,0.79963306]
[1757685195979,0.04312477,115000.0,114990.0,1.59963306]
[1757685196583,0.04512477,115000.0,114990.0,1.59963306]
[1757685196983,0.04512477,115000.0,114990.0,2.12253456]
[1757685196984,0.06822477,115000.0,114990.0,2.12253456]
[1757685197788,0.06822477,115000.0,114990.0,1.32257456]
[1757685198086,0.06822477,115000.0,114990.0,2.12249456]
[1757685198286,0.04512477,115000.0,114990.0,2.12249456]
[1757685198489,0.04512477,115000.0,114990.0,2.12248696]
[1757685198690,0.04512477,115000.0,114990.0,2.0444539]
[1757685199984,0.04512477,115000.0,114990.0,1.2445339]
[1757685200189,0.04512477,115000.0,114990.0,1.88496827]
[1757685200392,0.04512477,115000.0,114990.0,1.08508827]
[1757685200583,0.40861304,115000.0,114990.0,1.88496827]
[1757685201186,0.40861304,115000.0,114990.0,1.88492827]
[1757685201187,0.04512477,115000.0,114990.0,1.88492827]
[1757685203888,0.03225477,115000.0,114990.0,1.88492827]
[1757685204091,0.02325477,115000.0,114990.0,1.88592827]
[1757685204293,0.03425477,115000.0,114990.0,1.88592827]
[1757685204492,0.04774477,115000.0,114990.0,1.88592827]
[1757685205192,0.03009,115000.0,114990.0,1.88592827]
[1757685205400,0.0166,115000.0,114990.0,2.24941654]
[1757685205586,0.0066,115000.0,114990.0,2.4143888]
[1757685205788,0.0066,115000.0,114990.0,3.25502514]
[1757685206290,0.0066,115000.0,114990.0,2.45518514]
[1757685206599,0.01,115020.0,115000.0,0.0869178]
[1757685206784,0.01,115020.0,115010.0,1.96282307]
[1757685206990,0.02349,115020.0,115010.0,1.96282307]
[1757685207993,0.02649,115020.0,115010.0,1.96282307]
[1757685208585,0.012,115020.0,115010.0,1.96282307]
[1757685208795,0.012,115020.0,115010.0,1.98281084]
[1757685209191,0.012,115020.0,115010.0,1.98081084]
[1757685210095,0.002,115020.0,115010.0,2.04998061]
[1757685210291,0.002,115020.0,115010.0,2.38689791]
[1757685210497,0.002,115020.0,115010.0,2.80571576]
[1757685210898,0.01549,115020.0,115010.0,2.71867846]
[1757685211897,0.002,115020.0,115010.0,2.71867846]
[1757685212396,0.002,115020.0,115010.0,1.91907846]
[1757685212595,0.003,115020.0,115010.0,1.92107846]
[1757685212989,0.01649,115020.0,115010.0,2.72059846]
[1757685214303,0.003,115020.0,115010.0,2.72059846]
[1757685216800,0.003,115020.0,115010.0,1.92107846]
[1757685216999,0.003,115020.0,115010.0,2.72051846]
[1757685217701,0.003,115020.0,115010.0,2.83323277]
[1757685219100,0.003,115020.0,115010.0,2.83319277]
[1757685219304,0.003,115020.0,115010.0,2.58319277]
[1757685220303,0.003,115020.0,115010.0,2.50517797]
[1757685220694,0.01649,115020.0,115010.0,1.70577797]
[1757685220895,0.01649,115020.0,115010.0,2.50505797]
[1757685222198,0.01649,115020.0,115010.0,1.70577797]
[1757685222495,0.01649,115020.0,115010.0,2.50501797]
[1757685224002,0.003,115020.0,115010.0,2.50501797]
[1757685224300,0.003,115020.0,115010.0,2.50497797]
[1757685224507,0.01649,115020.0,115010.0,2.50497797]
[1757685227994,0.01649,115020.0,115010.0,2.58299277]
[1757685228402,0.003,115020.0,115010.0,2.58299277]
[1757685228707,0.003,115020.0,115010.0,2.90801126]
[1757685229100,0.003,115020.0,115010.0,2.82999646]
[1757685229300,0.003,115020.0,115010.0,2.59189517]
[1757685229706,0.003,115020.0,115010.0,2.82999646]
[1757685230008,0.003,115020.0,115010.0,2.59189517]
[1757685230198,0.003,115020.0,115010.0,2.50485797]
[1757685230605,0.003,115020.0,115010.0,2.59177517]
[1757685231605,0.003,115020.0,115010.0,2.93922808]
[1757685231800,0.02349,115040.0,115020.0,0.0869051]
[1757685232002,0.02609,115050.0,115030.0,2.39988674]
[1757685232206,0.0126,115050.0,115040.0,0.59890129]
[1757685232611,0.0026,115050.0,115040.0,1.24004284]
[1757685232803,0.0026,115050.0,115040.0,1.15314824]
[1757685234311,0.0026,115050.0,115040.0,1.95214824]
[1757685234608,0.0036,115050.0,115040.0,1.95214824]
[1757685235504,0.0036,115050.0,115040.0,2.60904284]
[1757685236203,0.01747878,115060.0,115050.0,0.086887]
[1757685236508,0.01747878,115060.0,115050.0,1.23997963]
[1757685236903,0.01349,115070.0,115050.0,1.27061639]
[1757685237101,0.01349,115070.0,115060.0,1.39778129]
[1757685237304,0.02349,115070.0,115060.0,1.87398387]
[1757685237506,0.02349,115070.0,115060.0,0.83700258]
[1757685237708,0.04653,115070.0,115060.0,1.63584258]
[1757685238011,0.04653,115070.0,115060.0,1.63384258]
[1757685238305,0.04653,115070.0,115060.0,1.70487952]
[1757685238504,0.04653,115070.0,115060.0,0.90603952]
[1757685238803,0.02349,115070.0,115060.0,1.70483952]
[1757685239405,0.02449,115070.0,115060.0,1.70483952]
[1757685240204,0.02449,115070.0,115060.0,1.70583952]
[1757685240205,0.02549,115070.0,115060.0,1.70583952]
[1757685240806,0.02549,115070.0,115060.0,1.95261639]
[1757685241210,0.02549,115070.0,115060.0,1.7145151]
[1757685241411,0.02549,115070.0,115060.0,1.95253639]
[1757685241712,0.02549,115070.0,115060.0,1.7144351]
[1757685242104,0.02549,115070.0,115060.0,0.9157151]
[1757685242307,0.02549,115070.0,115060.0,1.7143951]
[1757685244415,0.002,115070.0,115060.0,1.95249639]
[1757685244715,0.002,115070.0,115060.0,2.17937619]
[1757685245214,0.002,115070.0,115060.0,2.09249639]
[1757685245817,0.002,115070.0,115060.0,2.56249639]
[1757685247108,0.002,115070.0,115060.0,2.64937619]
[1757685247712,0.002,115070.0,115060.0,1.85069619]
[1757685248108,0.002,115070.0,115060.0,2.64917619]
[1757685248310,0.01294,115090.0,115070.0,0.0868701]
[1757685248517,0.01294,115090.0,115080.0,2.23438387]
[1757685248820,0.01294,115090.0,115080.0,1.99624258]
[1757685249007,0.01294,115090.0,115080.0,2.23434387]
[1757685249516,0.01594,115090.0,115080.0,2.23434387]
[1757685250215,0.01294,115090.0,115080.0,2.23434387]
[1757685251509,0.02294,115090.0,115080.0,1.99616258]
[1757685252215,0.02294,115090.0,115080.0,1.99816258]
[1757685252415,0.02294,115090.0,115080.0,1.19980258]
[1757685252615,0.02294,115090.0,115080.0,1.99816258]
[1757685253112,0.02294,115090.0,115080.0,1.99812258]
[1757685253511,0.02394,115090.0,115080.0,2.00012258]
[1757685253710,0.02394,115090.0,115080.0,1.20180258]
[1757685254018,0.53508129,115090.0,115080.0,1.20180258]
[1757685254317,0.53508129,115090.0,115080.0,2.00008258]
[1757685254513,0.29698,115090.0,115080.0,2.00008258]
[1757685256417,0.29698,115090.0,115080.0,1.84103042]
[1757685258424,0.28698,115090.0,115080.0,1.84103042]
[1757685258617,0.01394,115090.0,115080.0,1.84103042]
[1757685258925,0.001,115090.0,115080.0,2.50647073]
[1757685259713,0.001,115090.0,115080.0,2.41960563]
[1757685260318,0.001,115090.0,115080.0,2.49759439]
[1757685261616,0.001,115090.0,115080.0,2.49959439]
[1757685261923,0.001,115090.0,115080.0,2.59946903]
[1757685262823,0.001,115090.0,115080.0,2.68633433]
[1757685263224,0.001,115090.0,115080.0,2.59946903]
[1757685263721,0.001,115090.0,115080.0,2.52148027]
[1757685264624,0.001,115090.0,115080.0,1.72320027]
[1757685264824,0.01441,115090.0,115080.0,2.36266506]
[1757685265126,0.01441,115090.0,115080.0,1.56462506]
[1757685265623,0.01441,115090.0,115080.0,2.36262506]
[1757685266931,0.01441,115090.0,115080.0,2.04547464]
[1757685267123,0.01441,115090.0,115080.0,2.36262506]
[1757685268935,0.01441,115090.0,115080.0,2.52120027]
[1757685269431,0.01441,115090.0,115080.0,2.60806587]
[1757685269732,0.001,115090.0,115080.0,2.68605463]
[1757685273635,0.001,115090.0,115080.0,1.80118903]
[1757685273835,0.01441,115090.0,115080.0,2.59898903]
[1757685274243,0.001,115090.0,115080.0,2.68585423]
[1757685275340,0.001,115090.0,115080.0,2.59898903]
[1757685276542,0.01441,115090.0,115080.0,1.80118903]
[1757685276740,0.01441,115090.0,115080.0,2.44037382]
[1757685277146,0.01441,115090.0,115080.0,1.64261382]
[1757685277546,0.01441,115090.0,115080.0,2.44033382]
[1757685278043,0.01441,115090.0,115080.0,2.59890903]
[1757685279045,0.01441,115090.0,115080.0,2.52092027]
[1757685279246,0.01441,115090.0,115080.0,2.60778557]
[1757685279247,0.001,115090.0,115080.0,2.60778557]
[1757685279445,0.001,115090.0,115080.0,2.50104563]
[1757685279647,0.001,115090.0,115080.0,2.52112081]
[1757685280041,0.01441,115090.0,115080.0,2.52112081]
[1757685282642,0.01441,115090.0,115080.0,2.04539518]
[1757685282837,0.01441,115090.0,115080.0,2.50104563]
[1757685283247,0.01441,115090.0,115080.0,2.52119516]
[1757685283741,0.001,115090.0,115080.0,2.52111516]
[1757685284335,0.001,115090.0,115080.0,2.63046678]
[1757685285044,0.01441,115090.0,115080.0,2.63046678]
[1757685286448,0.01441,115090.0,115080.0,2.52111516]
[1757685287847,0.001,115090.0,115080.0,2.52111516]
[1757685288151,0.01294,115100.0,115080.0,2.96738501]
[1757685288342,0.02338,115110.0,115090.0,0.92338443]
[1757685288540,0.02338,115110.0,115100.0,1.74353922]
[1757685289550,0.02338,115110.0,115100.0,1.58496401]
[1757685290350,0.02338,115110.0,115100.0,1.26781359]
[1757685290649,0.02294,115110.0,115100.0,1.58496401]
[1757685290949,0.02294,115110.0,115100.0,1.58396401]
[1757685291152,0.01341,115130.0,115120.0,0.0868355]